{"text_format":"1","workbook":"xlsx","n_sheets":3,"sheets":["Arkusz1","Arkusz2","Arkusz3"],"not_rendered":{"charts":0,"images":1,"macros":0,"external_links":0,"defined_names":0,"comments":0,"pivot_tables":0},"unopened":[],"bounds":{"document_bytes":16777216,"sheet_cells":100000,"rows_first":2000,"rows_last":500,"rows_between":2000,"halvings":0,"cell_chars":16384,"cell_head_chars":4096},"cells_cut":0,"cells_raw":0,"read":"whole","date_system":"1900"}

{"sheet":"Arkusz1","index":0,"n_rows":47,"n_cols":9,"rows_kept":47,"cut":false,"hidden":false,"merged":[[14,0,14,1],[12,0,12,1],[11,0,11,1],[13,2,13,3],[13,0,13,1],[7,6,7,7],[15,6,15,7],[10,6,10,7],[11,2,11,3],[11,6,11,7],[12,2,12,3],[12,6,12,7],[9,6,9,7],[8,6,8,7],[14,2,14,3],[13,6,13,7],[14,6,14,7],[10,0,10,1],[10,2,10,3],[6,0,6,1],[6,2,6,3],[9,0,9,1],[9,2,9,3],[7,0,7,1],[7,2,7,3],[8,0,8,1],[8,2,8,3],[15,0,15,1],[15,2,15,3],[29,0,29,4],[33,6,33,7],[26,0,26,1],[28,0,28,1],[24,0,24,1],[28,2,28,3],[26,2,26,3],[24,2,24,3],[27,2,27,3],[27,0,27,1],[25,0,25,1],[25,2,25,3],[46,3,47,7],[34,8,35,8],[36,0,36,4],[36,6,36,7],[40,0,41,7],[40,8,41,8],[34,0,35,4],[34,5,35,5],[34,6,35,7],[39,0,39,7],[37,0,37,4],[38,0,38,4],[37,6,37,7],[38,6,38,7],[16,8,17,8],[18,6,19,7],[22,0,22,5],[23,0,23,1],[23,2,23,3],[16,0,17,5],[16,6,17,7],[6,6,6,7],[1,0,2,8],[3,0,3,8],[4,0,4,1],[4,2,4,3],[4,6,4,7],[5,0,5,1],[5,2,5,3],[5,6,5,7]]}
["Tabela nr 1."]
["Kalkulacja kosztów wykonania zamówienia publicznego "]
[]
[]
["Wyszczególnienie",null,"Minimalna liczba pokoi/\nosób/posiłków/usług\n",null,"Maksymalna liczbapokoi/\nosób/posiłków/usług ","Cena jednostkowa brutto \n(pokój/1 osoba/usługa)","Łączna minimalna wartość  brutto zamówienia ",null,"Łączna maksymalna wartość brutto zamówienia  "]
[null,null,1,null,3,4,"5=1*4",null,"7=3*4"]
["Pokój dwuosobowy\n(1 nocleg  dla 2 osób) - nocleg  między dniem 09.12.2020 r. a 10.12.2020 r.",null,20,null,40,null,{"$f":"ROUND(C7*F7,2)","v":0},null,{"$f":"ROUND(E7*F7,2)","v":0}]
["Pokój jednoosobowy\n(1 nocleg  dla 1 osoby) - nocleg  między dniem 09.12.2020 r. a 10.12.2020 r.",null,10,null,20,null,0,null,0]
["Śniadanie \n(1 śniadanie dla 1 osoby) w dniu 10.12.2020 r.",null,50,null,100,null,{"$f":"ROUND(C9*F9,2)","v":0},null,0]
["Przerwy kawowe \n(cena za 1 przerwę kawową dla 1 osoby - 6 przerw podczas konferencji )",null,420,null,720,null,0,null,0]
["Obiad (cena za 1 obiad dla 1 osoby -  2 dni - 09.12.2020 r. oraz 10.12.2020 r.)",null,140,null,240,null,0,null,0]
["Kolacja (1 kolacja dla jednej osoby)",null,70,null,120,null,0,null,0]
["Wynajęcie sali szkoleniowej  (cena za 1 dzień)",null,2,null,2,null,0,null,0]
["Zapewnienie oprawy muzycznej podczas kolacji",null,1,null,1,null,{"$f":"ROUND(C14*F14,2)","v":0},null,0]
["Transport materiałów konferencyjnych",null,1,null,1,null,0,null,0]
["Ubezpieczenie (2-dniowe dla 1 osoby)",null,70,null,120,null,0,null,0]
["Łączna wartość brutto wszystkich pozycji z zamówienia ",null,null,null,null,null,{"$f":"SUM(G7:H16)","v":0},null,{"$f":"SUM(I7:I16)","v":0}]
[]
[null,null,null,null,null,null,"Powyższą wartość należy wpisać do formularza ofertowgo w pozycji wartość minimalnego wynagrodzenia"]
[]
[]
["Tabela nr 2."]
["Opcja"]
["Wyszczególnienie",null,"Maksymalna liczba osób/km/usług",null,"Cena jednostkowa brutto (1 osoba/pobyt/)","Łączna wartość brutto"]
[null,null,1,null,2,"3=2*1"]
["Organizacja wycieczki terenowej ",null,1,null,null,{"$f":"C26*E26","v":0}]
["Transport dla max 120 osób– cena za podstawienie autokaru ",null,1,null,null,{"$f":"C27*E27","v":0}]
["Transport w ramach wycieczki terenowej dla max 120 osób - stawka za 1 km ( 1 autokar max. 200 km)",null,400,null,null,{"$f":"C28*E28","v":0}]
["Suchy prowiant (1 paczka z prowiantem dla 1 osoby)",null,120,null,null,{"$f":"C29*E29","v":0}]
["Łączna wartość brutto wszystkich pozycji opcji ",null,null,null,null,{"$f":"SUM(F26:F29)","v":0}]
[]
[]
["Tabela nr 3."]
[null,null,null,null,null,"Liczba sal/przerw kawowych","Cena jednostkowa usługi",null,"Wartość (liczba sal/przerw kawowych x cena jednostkowa usługi)"]
["Łączna maksymalna wartość brutto wszystkich pozycji zamówienia podstawowego z tabeli nr 1",null,null,null,null,"n/d","n/d",null,{"$f":"I17","v":0}]
[]
["Łączna maksymalna wartość brutto wszystkich pozycji opcji z tabeli nr 2",null,null,null,null,"n/d","n/d",null,{"$f":"F30","v":0}]
["Pomniejszenie kwoty maksymalnej wynagrodzenia o niewykorzystanie sal szkoleniowych drugiego dnia przy zastosowaniu opcji wyjazdu terenowego  - w kolumnie cena jednostkowa należy wpisac cenę wskazaną w tabeli nr.1",null,null,null,null,1,null,null,{"$f":"-(F38*G38)","v":0}]
["Pomniejszenie kwoty maksymalnej wynagrodzenia o niewykorzystane przerwy kawowe drugiego dnia po zastosowaniu opcji wyjazdu terenowego- w kolumnie cena jednostkowa należy wpisac cenę wskazaną w tabeli nr.1",null,null,null,null,360,null,null,{"$f":"-(F39*G39)","v":0}]
["Maksymalna wartość zamówienia brutto po zastosowaniu opcji wyjazdu terenowego oraz po zwiększeniu liczby uczestników do 120 (należy wpisać do formularza ofertowgo) ",null,null,null,null,null,null,null,{"$f":"SUM(I35:I39)","v":0}]
["Wartość opcji  (należy wpisać do formularza ofertowgo jako kwotę opcji) ",null,null,null,null,null,null,null,{"$f":"I40-G17","v":0}]
[]
[]
[]
[]
[]
[null,null,null,"Projekt LIFE15 GIE/PL/000758 pn. Masz prawo do skutecznej ochrony przyrody, finansowany ze środków Programu LIFE oraz ze środków Narodowego Funduszu Ochrony Środowiska i Gospodarki Wodnej."]

{"sheet":"Arkusz2","index":1,"n_rows":0,"n_cols":0,"rows_kept":0,"cut":false,"hidden":false,"merged":[]}

{"sheet":"Arkusz3","index":2,"n_rows":0,"n_cols":0,"rows_kept":0,"cut":false,"hidden":false,"merged":[]}